[Event "ESP-ch Teams Primera 2022"]
[Site "Sanxenxo Pontevedra"]
[Date "2022.09.18"]
[Round "2.12"]
[White "Pablos Tenrero, Raquel"]
[Black "Recuenco Andres, Javier"]
[Result "1-0"]
[ECO "C62"]
[WhiteElo "1985"]
[BlackElo "1925"]
[Annotator "TA"]
[PlyCount "79"]
[EventDate "2022.09.17"]
[EventType "team-tourn"]
[EventCountry "ESP"]
[SourceTitle "playchess.com"]
[Source "ChessBase"]
[SourceQuality "1"]
[TimeControl "5400+30"]

{[%evp 15,79,24,8,17,8,15,30,25,31,32,32,29,62,52,65,63,99,31,99,73,70,56,71,71,108,92,127,84,274,323,262,279,432,64,678,524,535,452,427,356,690,498,695,500,441,137,216,225,231,233,174,166,210,208,368,0,480,480,435,448,1152,1119,1469,1445,29981,29982]} 1. e4 e5 2. Nf3 Nc6 3. Bb5 d6 4. d4 exd4 5. Nxd4 Bd7 6. Bxc6 bxc6 7. Nc3 g6 8. O-O Bg7 9. Be3 {C62: Ruy Lopez: Steinitz Defence.} Nf6 10. Qd2 Ng4 11. Bg5 {White has an edge.} f6 12. Bf4 {[#]} c5 $146 ({Predecessor:} 12... O-O 13. Qe2 Kh8 14. Nxc6 Bxc6 15. Qxg4 Rb8 16. Rab1 Rb4 17. Qe2 Qb8 18. b3 f5 {1-0 (40) Beckemeier,W (2365)-Pachow,J (2340) Germany 1998}) 13. Nde2 g5 14. Bg3 h5 15. f3 $36 {[%cal Bf2f3,Bf3f4][%mdl 2080] White fights for an advantage.} Nh6 16. Qd5 ({Better is} 16. h4 $16) 16... Qc8 ({Black should play} 16... h4 $14 17. Bf2 h3) 17. f4 {White is much more active.} Be6 18. Qd2 Nf7 19. h4 {Black is now going downhill.} Bc4 20. Nd5 (20. hxg5 $6 fxg5 21. fxg5 h4 $15) 20... gxh4 21. Bxh4 Qg4 $2 (21... Bxd5 $16 22. Qxd5 c6) 22. Nxc7+ $18 {Pair of Knights!} (22. Bxf6 $6 Bxd5 23. Qxd5 O-O $18) 22... Kd7 23. Nxa8 {Dancing on a razor blade.} Qxh4 {[#]} (23... Rxa8 {was called for.} 24. Ng3 Nh6) 24. b3 $2 (24. Qa5 $1 $18 Rxa8 25. Qa4+ Ke7 26. Qxc4) 24... Ba6 $2 {[%mdl 8192]} (24... Bxe2 $14 25. Qxe2 (25. Qd5 Nd8 $11) 25... Rxa8) 25. Qd5 Nh6 {[#] And now ...Ng4 would win.} 26. Rad1 $1 Bf8 {...Ng4 is the strong threat.} 27. c4 Rh7 $2 (27... Ng4 28. Rf3 (28. Qf7+ Be7 $11) 28... Qh2+ 29. Kf1 Qh1+ 30. Ng1 Nh2+ 31. Kf2 Ng4+ 32. Kf1 Nh2+ 33. Ke2 Qxg2+ 34. Rf2 Qg4+ 35. Nf3 (35. Ke3 Qg3+ 36. Rf3 Qg8 $16) 35... Nxf3 36. Qf7+ (36. Rxf3 Be7 $16) 36... Kd8 37. Rxf3 Be7) 28. Rf3 Rg7 29. e5 {[%cal Re5d6]} Ng4 30. Rg3 $2 (30. exd6 Qh2+ 31. Kf1 Qh1+ 32. Ng1 Nh2+ 33. Ke2 Qxg2+ 34. Rf2 Qxd5 35. Rxd5 Bb7 36. Rxh5 (36. Rxh2 Bxd5 37. cxd5 Rxg1 $14) 36... Ng4 $14) (30. Ng3 $18 Qh2+ 31. Kf1) 30... Qh2+ (30... fxe5 $16 31. Rdd3 (31. Qxc5 Qh2+ 32. Kf1 Bb7 $11) 31... Qh2+ 32. Kf1 Qh1+ 33. Ng1 Qh4) 31. Kf1 Qxg3 {[%csl Gg4][%cal Rg3f2]} 32. Qxd6+ $1 ({Weaker is} 32. Nxg3 Ne3+ 33. Kf2 Nxd5 34. Rxd5 fxe5 $17) (32. e6+ Kd8 33. Nxg3 (33. e7+ $2 Bxe7 34. Nxg3 Ne3+ 35. Kf2 Nxd5 $19) 33... Ne3+ 34. Kf2 Nxd5 35. Rxd5 Rh7 $11) 32... Bxd6 33. Rxd6+ (33. Nxg3 $2 {perishes.} Ne3+ 34. Ke1 fxe5 35. Nxh5 Rxg2 $19) 33... Kc8 {[%csl Gg4][%cal Rg3f2]} 34. Nxg3 Bb7 $2 (34... fxe5 35. Rxa6 Kb7) 35. Nxh5 $2 ({White has to play} 35. Nf5 $18 Bxg2+ 36. Kg1 (36. Kxg2 Ne3+ 37. Kh3 Nxf5 $18)) 35... Rh7 {[%mdl 8192]} (35... Nh2+ $11 {and Black has nothing to worry.} 36. Ke1 Rxg2) 36. Nxf6 Nxf6 37. Rxf6 Bxa8 (37... Rh8 $142 38. f5 Bxa8) 38. Rf8+ Kb7 39. e6 {White wants to mate with Rf7+.} a6 40. Rf7+ {Weighted Error Value: White=0.98/Black=0.89} 1-0

[Event "ESP-ch Teams Primera 2022"]
[Site "Sanxenxo Pontevedra"]
[Date "2022.09.18"]
[Round "2.13"]
[White "Reinaldo Castineira, Roi"]
[Black "Cordova, Emilio"]
[Result "0-1"]
[ECO "B60"]
[WhiteElo "2496"]
[BlackElo "2550"]
[Annotator "ChessBase"]
[PlyCount "80"]
[EventDate "2022.09.17"]
[EventType "team-tourn"]
[EventCountry "ESP"]
[SourceTitle "playchess.com"]
[Source "ChessBase"]
[SourceQuality "1"]
[TimeControl "5400+30"]

1. e4 {[%emt 0:00:39]} c5 {[%emt 0:00:18]} 2. Nf3 {[%emt 0:01:03]} Nc6 {[%emt 0:00:56]} 3. d4 {[%emt 0:00:41]} cxd4 {[%emt 0:00:09]} 4. Nxd4 {[%emt 0:00:04]} Nf6 {[%emt 0:00:41]} 5. Nc3 {[%emt 0:00:06]} d6 {[%emt 0:00:10]} 6. Bg5 {[%emt 0:00:35]} Bd7 {[%emt 0:00:13]} 7. Nxc6 {[%emt 0:03:54]} Bxc6 {[%emt 0:00:24]} 8. Bxf6 {[%emt 0:00:25]} gxf6 {[%emt 0:00:06]} 9. Bb5 {[%emt 0:00:15]} Bxb5 {[%emt 0:06:31]} 10. Nxb5 {[%emt 0:00:57]} Qa5+ {[%emt 0:00:06]} 11. Nc3 {[%emt 0:01:14]} Rg8 {[%emt 0:00:14]} 12. O-O {[%emt 0:04:21]} e6 {[%emt 0:00:27]} 13. Qf3 {[%emt 0:06:57]} Rc8 {[%emt 0:05:07]} 14. Qxf6 {[%emt 0:08:20]} Bg7 {[%emt 0:01:14]} 15. Qh4 {[%emt 0:01:16]} Bxc3 {[%emt 0:00:48]} 16. bxc3 {[%emt 0:00:07]} Qg5 {[%emt 0:01:52]} 17. Qxg5 {[%emt 0:14:58]} Rxg5 {[%emt 0:00:37]} 18. Rfd1 {[%emt 0:06:01]} Ke7 {[%emt 0:02:23]} 19. Rd3 {[%emt 0:01:20]} Ra5 {[%emt 0:08:22]} 20. Rh3 {[%emt 0:10:04]} Rc4 {[%emt 0:06:25]} 21. Rxh7 {[%emt 0:10:04]} Rxe4 {[%emt 0:01:14]} 22. Kf1 {[%emt 0:02:05]} Rea4 {[%emt 0:14:36]} 23. Ke2 {[%emt 0:07:56]} Re5+ {[%emt 0:11:00]} 24. Kf1 {[%emt 0:00:05]} Rd5 {[%emt 0:00:59]} 25. Rh3 {[%emt 0:04:15]} Rd2 {[%emt 0:00:27]} 26. Rb1 {[%emt 0:00:15]} b6 {[%emt 0:00:46]} 27. Rb2 {[%emt 0:00:04]} Rd1+ {[%emt 0:01:04]} 28. Ke2 {[%emt 0:00:04]} Rh1 {[%emt 0:00:23]} 29. Rh8 {[%emt 0:02:19]} d5 {[%emt 0:03:49]} 30. h3 {[%emt 0:00:32]} Re4+ {[%emt 0:11:15]} 31. Kf3 {[%emt 0:00:14]} Rc4 {[%emt 0:00:16]} 32. Rb3 {[%emt 0:03:11]} Rc1 {[%emt 0:00:10]} 33. Ra8 {[%emt 0:01:46]} Rc7 {[%emt 0:04:40]} 34. h4 {[%emt 0:06:40]} Rxc2 {[%emt 0:00:28]} 35. h5 {[%emt 0:00:02]} f5 {[%emt 0:02:47]} 36. Kg3 {[%emt 0:03:55]} Kf6 {[%emt 0:00:42]} 37. f3 {[%emt 0:00:48]} Rg7+ {[%emt 0:00:30]} 38. Kf4 {[%emt 0:00:36]} e5+ {[%emt 0:00:39]} 39. Ke3 {[%emt 0:00:03]} f4+ {[%emt 0:00:44]} 40. Kd3 {[%emt 0:00:04]} Rgxg2 {[%emt 0:00:07]} 0-1

[Event "ESP-ch Teams Primera 2022"]
[Site "Sanxenxo Pontevedra"]
[Date "2022.09.18"]
[Round "2.14"]
[White "Krysa, Leandro"]
[Black "Suarez Gomez, Julio"]
[Result "1/2-1/2"]
[ECO "E16"]
[WhiteElo "2535"]
[BlackElo "2440"]
[Annotator "ChessBase"]
[PlyCount "110"]
[EventDate "2022.09.17"]
[EventType "team-tourn"]
[EventCountry "ESP"]
[SourceTitle "playchess.com"]
[Source "ChessBase"]
[SourceQuality "1"]
[TimeControl "5400+30"]

1. d4 {[%emt 0:00:05]} Nf6 {[%emt 0:00:07]} 2. c4 {[%emt 0:00:25]} e6 {[%emt 0:00:06]} 3. Nf3 {[%emt 0:00:21]} Bb4+ {[%emt 0:00:40]} 4. Bd2 {[%emt 0:00:41]} Qe7 {[%emt 0:00:29]} 5. g3 {[%emt 0:01:11]} Bxd2+ {[%emt 0:00:53]} 6. Qxd2 {[%emt 0:03:28]} Nc6 {[%emt 0:00:23]} 7. e3 {[%emt 0:03:29]} e5 {[%emt 0:11:32]} 8. dxe5 {[%emt 0:04:24]} Nxe5 {[%emt 0:00:11]} 9. Nxe5 {[%emt 0:00:14]} Qxe5 {[%emt 0:00:15]} 10. Nc3 {[%emt 0:02:49]} d6 {[%emt 0:06:18]} 11. Bg2 {[%emt 0:00:34]} O-O {[%emt 0:00:10]} 12. O-O {[%emt 0:05:59]} c6 {[%emt 0:06:43]} 13. Rad1 {[%emt 0:04:23]} Rd8 {[%emt 0:07:47]} 14. h3 {[%emt 0:02:04]} h5 {[%emt 0:12:49]} 15. Qd4 {[%emt 0:13:18]} Be6 {[%emt 0:05:21]} 16. b3 {[%emt 0:00:49]} Qxd4 {[%emt 0:02:40]} 17. Rxd4 {[%emt 0:00:07]} Kf8 {[%emt 0:00:13]} 18. f4 {[%emt 0:05:52]} Ke7 {[%emt 0:03:40]} 19. Rfd1 {[%emt 0:03:41]} a5 {[%emt 0:03:40]} 20. Kh2 {[%emt 0:04:02]} g6 {[%emt 0:01:57]} 21. Bf3 {[%emt 0:01:34]} Rac8 {[%emt 0:05:31]} 22. e4 {[%emt 0:02:11]} Rb8 {[%emt 0:00:34]} 23. Be2 {[%emt 0:01:35]} Ra8 {[%emt 0:02:28]} 24. Kg2 {[%emt 0:06:47]} Rac8 {[%emt 0:02:32]} 25. Bf3 {[%emt 0:04:39]} Rb8 {[%emt 0:01:27]} 26. R4d2 {[%emt 0:04:34]} Ra8 {[%emt 0:00:27]} 27. Re1 {[%emt 0:02:26]} Kf8 {[%emt 0:03:25]} 28. Rc1 {[%emt 0:00:53]} Ke7 {[%emt 0:00:17]} 29. a3 {[%emt 0:03:16]} Ra6 {[%emt 0:02:08]} 30. Ne2 {[%emt 0:00:25]} Bg4 {[%emt 0:03:42]} 31. Nd4 {[%emt 0:01:22]} Bxf3+ {[%emt 0:00:23]} 32. Kxf3 {[%emt 0:00:10]} Nd7 {[%emt 0:01:02]} 33. Rc3 {[%emt 0:06:57]} Raa8 {[%emt 0:00:40]} 34. Re3 {[%emt 0:01:10]} Nc5 {[%emt 0:01:20]} 35. Rd1 {[%emt 0:04:10]} Nd7 {[%emt 0:00:56]} 36. Rh1 {[%emt 0:01:01]} Rh8 {[%emt 0:00:24]} 37. Rd3 {[%emt 0:00:48]} Nc5 {[%emt 0:01:20]} 38. Rdd1 {[%emt 0:00:21]} Ne6 {[%emt 0:00:54]} 39. Rd2 {[%emt 0:01:41]} Nxd4+ {[%emt 0:03:35]} 40. Rxd4 {[%emt 0:00:06]} b6 {[%emt 0:00:30]} 41. Rhd1 {[%emt 0:01:09]} Rhd8 {[%emt 0:01:00]} 42. R4d3 {[%emt 0:00:36]} Rd7 {[%emt 0:01:57]} 43. g4 {[%emt 0:03:27]} hxg4+ {[%emt 0:00:05]} 44. hxg4 {[%emt 0:00:02]} Rh8 {[%emt 0:01:14]} 45. Kg3 {[%emt 0:00:32]} Rdd8 {[%emt 0:02:34]} 46. g5 {[%emt 0:00:44]} Ke6 {[%emt 0:00:41]} 47. b4 {[%emt 0:00:48]} Ke7 {[%emt 0:02:08]} 48. f5 {[%emt 0:01:25]} Rh5 {[%emt 0:02:24]} 49. Kg4 {[%emt 0:00:27]} Rh2 {[%emt 0:00:07]} 50. f6+ {[%emt 0:01:35]} Ke6 {[%emt 0:00:12]} 51. b5 {[%emt 0:00:18]} Rdh8 {[%emt 0:02:14]} 52. Rxd6+ {[%emt 0:00:49]} Ke5 {[%emt 0:00:03]} 53. bxc6 {[%emt 0:00:21]} R8h4+ {[%emt 0:00:08]} 54. Kg3 {[%emt 0:00:13]} R4h3+ {[%emt 0:00:04]} 55. Kg4 {[%emt 0:00:06]} Rh4+ {[%emt 0:01:05]} 1/2-1/2

[Event "ESP-ch Teams Primera 2022"]
[Site "Sanxenxo Pontevedra"]
[Date "2022.09.18"]
[Round "2.15"]
[White "Laiz Ibanez, Hector"]
[Black "Ushenina, Anna"]
[Result "1/2-1/2"]
[ECO "B12"]
[WhiteElo "2327"]
[BlackElo "2439"]
[Annotator "ChessBase"]
[PlyCount "84"]
[EventDate "2022.09.17"]
[EventType "team-tourn"]
[EventCountry "ESP"]
[SourceTitle "playchess.com"]
[Source "ChessBase"]
[SourceQuality "1"]
[TimeControl "5400+30"]

1. e4 c6 2. d4 {[%emt 0:00:41]} d5 {[%emt 0:00:49]} 3. e5 {[%emt 0:00:30]} Bf5 {[%emt 0:00:30]} 4. Nf3 {[%emt 0:00:30]} e6 {[%emt 0:00:30]} 5. Be2 {[%emt 0:00:30]} Ne7 {[%emt 0:00:30]} 6. O-O {[%emt 0:00:30]} h6 {[%emt 0:00:30]} 7. a4 {[%emt 0:00:30]} Nd7 {[%emt 0:00:30]} 8. c3 {[%emt 0:00:30]} Bh7 {[%emt 0:00:30]} 9. Nbd2 {[%emt 0:00:30]} c5 {[%emt 0:00:30]} 10. dxc5 {[%emt 0:00:30]} Nxc5 {[%emt 0:00:30]} 11. b4 {[%emt 0:00:30]} Nd7 {[%emt 0:00:30]} 12. c4 {[%emt 0:00:30]} dxc4 {[%emt 0:00:30]} 13. Nxc4 {[%emt 0:00:30]} Nd5 {[%emt 0:00:30]} 14. Qb3 {[%emt 0:00:30]} Be7 {[%emt 0:00:30]} 15. Ba3 {[%emt 0:00:30]} O-O {[%emt 0:00:30]} 16. Rfd1 {[%emt 0:00:30]} Qb8 {[%emt 0:00:30]} 17. Rd4 {[%emt 0:00:30]} Re8 {[%emt 0:00:30]} 18. Rad1 {[%emt 0:00:30]} Qc7 {[%emt 0:00:30]} 19. Rc1 {[%emt 0:00:30]} Qb8 {[%emt 0:00:30]} 20. Rcd1 {[%emt 0:00:30]} Qc7 {[%emt 0:00:30]} 21. Rc1 {[%emt 0:00:30]} Qb8 {[%emt 0:00:30]} 22. Rcd1 {[%emt 0:00:30]} Rc8 {[%emt 0:00:30]} 23. Rc1 {[%emt 0:00:30]} Rc7 {[%emt 0:00:30]} 24. Ne3 {[%emt 0:00:30]} Nxe3 {[%emt 0:00:30]} 25. Qxe3 {[%emt 0:00:30]} Nb6 {[%emt 0:00:30]} 26. b5 {[%emt 0:00:30]} Nd5 {[%emt 0:00:30]} 27. Qb3 {[%emt 0:00:30]} Rxc1+ {[%emt 0:00:30]} 28. Bxc1 {[%emt 0:00:30]} Qc7 {[%emt 0:00:30]} 29. Rc4 {[%emt 0:00:30]} Qd7 {[%emt 0:00:30]} 30. Ba3 {[%emt 0:00:30]} Rd8 {[%emt 0:00:30]} 31. Bxe7 {[%emt 0:00:30]} Qxe7 {[%emt 0:00:30]} 32. a5 {[%emt 0:00:30]} Bg6 {[%emt 0:00:30]} 33. h3 {[%emt 0:00:30]} Qd7 {[%emt 0:00:30]} 34. Rd4 {[%emt 0:00:30]} Qc7 {[%emt 0:00:30]} 35. Bc4 {[%emt 0:00:30]} Qxa5 {[%emt 0:00:30]} 36. Bxd5 {[%emt 0:00:30]} exd5 {[%emt 0:00:30]} 37. Rxd5 {[%emt 0:00:30]} Be4 {[%emt 0:00:30]} 38. Rxd8+ {[%emt 0:00:30]} Qxd8 {[%emt 0:00:30]} 39. e6 {[%emt 0:00:30]} Bxf3 {[%emt 0:00:30]} 40. exf7+ {[%emt 0:00:30]} Kf8 {[%emt 0:00:30]} 41. Qxf3 {[%emt 0:00:30]} Qd7 {[%emt 0:00:30]} 42. Qe3 {[%emt 0:00:30]} Qd8 {[%emt 1:30:02]} 1/2-1/2

[Event "ESP-ch Teams Primera 2022"]
[Site "Sanxenxo Pontevedra"]
[Date "2022.09.18"]
[Round "2.16"]
[White "Bernabeu Lopez, Carlos Javier"]
[Black "Abal Cores, Lucas"]
[Result "1/2-1/2"]
[ECO "D02"]
[WhiteElo "2415"]
[BlackElo "2291"]
[Annotator "ChessBase"]
[PlyCount "64"]
[EventDate "2022.09.17"]
[EventType "team-tourn"]
[EventCountry "ESP"]
[SourceTitle "playchess.com"]
[Source "ChessBase"]
[SourceQuality "1"]
[TimeControl "5400+30"]

1. d4 d5 2. Nf3 Nf6 3. c4 e6 4. g3 c6 5. Nbd2 Bd6 6. Bg2 O-O 7. O-O Nbd7 8. Qc2 Qe7 9. e4 dxe4 10. Nxe4 Nxe4 11. Qxe4 e5 12. Re1 Re8 13. Qc2 Qf8 14. c5 Bc7 15. Be3 Ba5 16. Red1 h6 17. dxe5 Bc7 18. Bd4 Nxe5 19. Nd2 Bg4 20. Re1 Rad8 21. Qc3 f6 22. Ne4 Qf7 23. f4 Nf3+ 24. Bxf3 Bxf3 25. Qxf3 Rxd4 26. Rad1 Red8 27. b3 f5 28. Nf2 R4d5 29. Rxd5 Rxd5 30. Nd3 Qd7 31. Ne5 Qe6 32. Nc4 Qd7 1/2-1/2

[Event "ESP-ch Teams Primera 2022"]
[Site "Sanxenxo Pontevedra"]
[Date "2022.09.18"]
[Round "2.17"]
[White "Rodriguez Ferreiros, Andres"]
[Black "Alshameary Puente, Ismael"]
[Result "1/2-1/2"]
[ECO "B92"]
[WhiteElo "2110"]
[BlackElo "2332"]
[Annotator "ChessBase"]
[PlyCount "80"]
[EventDate "2022.09.17"]
[EventType "team-tourn"]
[EventCountry "ESP"]
[SourceTitle "playchess.com"]
[Source "ChessBase"]
[SourceQuality "1"]
[TimeControl "5400+30"]

1. e4 c5 2. Nf3 d6 3. d4 cxd4 4. Nxd4 Nf6 5. Nc3 a6 6. Be2 e5 7. Nb3 Be7 8. Be3 Be6 9. Nd5 Nbd7 10. Qd3 O-O 11. O-O Bxd5 12. exd5 Nb6 13. c4 Rc8 14. Rac1 Na4 15. Qd2 Ne4 16. Qb4 Qd7 17. f3 Nec5 18. Na5 Bd8 19. b3 Qc7 20. Bd2 Nb6 21. Qa3 Ncd7 22. b4 h6 23. Rfd1 f5 24. c5 dxc5 25. d6 Qb8 26. bxc5 Na8 27. Qb3+ Kh8 28. Nxb7 Bb6 29. cxb6 Qxb7 30. Be3 Naxb6 31. Qa3 f4 32. Bf2 Rxc1 33. Rxc1 Rc8 34. Rxc8+ Qxc8 35. Qxa6 Qc1+ 36. Bf1 Qc6 37. a4 Qxa4 38. Qxa4 Nxa4 39. Bb5 Nac5 40. Bxc5 Nxc5 1/2-1/2

[Event "ESP-ch Teams Primera 2022"]
[Site "Sanxenxo Pontevedra"]
[Date "2022.09.18"]
[Round "2.18"]
[White "Calzetta Ruiz, Monica"]
[Black "Dorado Meijide, Andrea"]
[Result "0-1"]
[ECO "C02"]
[WhiteElo "2227"]
[BlackElo "1801"]
[Annotator "TA"]
[PlyCount "86"]
[EventDate "2022.09.17"]
[EventType "team-tourn"]
[EventCountry "ESP"]
[SourceTitle "playchess.com"]
[Source "ChessBase"]
[SourceQuality "1"]
[TimeControl "5400+30"]

{[%evp 16,86,4,-24,6,0,20,12,14,14,19,-4,6,8,27,-43,49,26,52,13,26,21,24,28,36,21,15,25,39,14,10,6,0,17,25,0,0,-5,-8,-2,-4,0,0,0,0,0,0,0,33,0,0,0,0,0,0,0,262,249,256,243,242,117,112,132,288,295,255,253,488,341,321,231,319]} 1. e4 e6 2. d4 d5 3. e5 c5 4. c3 Nc6 5. Nf3 Bd7 6. a3 cxd4 7. cxd4 Nge7 8. Nc3 Nf5 9. b4 Be7 {C02: French: Advance Variation.} 10. Be2 O-O 11. O-O Rc8 {[%cal Oc6e5] The position is equal.} 12. Bb2 f6 13. Qd2 fxe5 14. dxe5 Be8 15. Rad1 {[#]} ({White should try} 15. h3 $1 $11) 15... Kh8 $146 ({Black should play} 15... Bh5 $15) ({Predecessor:} 15... Bg6 16. Rfe1 a6 17. b5 Na5 18. bxa6 Nb3 19. Qf4 bxa6 20. Qg4 Qb6 21. Na4 Qc6 {1-0 (56) Chau,O (2136)-Kerrigan,K (2129) France 2002}) 16. h3 Bg6 17. Bd3 Nh4 18. Nxh4 Bxd3 19. Qxd3 {[#] Black must now prevent Nf3.} Bxh4 20. Ne2 {[%cal Bc3e2,Be2f4,Bf4d3,Bd3c5][%mdl 32]} a6 21. g3 Be7 22. Nf4 Qd7 23. Qe2 {aiming for Qg4.} Bg5 24. Nd3 Rce8 25. Qg4 Bd8 26. Nc5 Qe7 27. Rc1 {[%cal Oc5a6]} Rf5 28. f4 Bb6 29. Kg2 Bxc5 30. Rxc5 Ref8 31. h4 $1 a5 32. Rfc1 axb4 33. axb4 {[#] b5 is the strong threat.} h5 34. Qe2 Qf7 35. b5 Nd8 {[%mdl 8192]} (35... Rxf4 $11 {and Black has nothing to worry.} 36. gxf4 Qg6+ 37. Kh3 Rxf4) 36. Ba3 {[%cal Bb2a3,Ba3e7,Be7g5][%mdl 32] Hoping for Rc7.} Rg8 37. Rc7 Qg6 38. Kh3 (38. Qd3 $18) 38... Rf7 $16 39. Be7 {Threatens to win with Rd7.} Qf5+ $2 {Black cannot hold the game after this.} (39... Re8 $16) 40. Kh2 $18 Re8 41. Bg5 Ref8 $2 (41... Kg8 {was called for.} 42. Qxh5 g6) 42. Qxh5+ Kg8 43. Qe2 {And now Rc8 would win.} d4 {[%mdl 32768] Weighted Error Value: White=0.26 (precise) /Black=0.33. Loss on time!?} 0-1

[Event "ESP-ch Teams Primera 2022"]
[Site "Sanxenxo Pontevedra"]
[Date "2022.09.18"]
[Round "2.19"]
[White "Bjerre, Jonas Buhl"]
[Black "Alsina Leal, Daniel"]
[Result "1-0"]
[ECO "B30"]
[WhiteElo "2598"]
[BlackElo "2525"]
[Annotator "ChessBase"]
[PlyCount "71"]
[EventDate "2022.09.17"]
[EventType "team-tourn"]
[EventCountry "ESP"]
[SourceTitle "playchess.com"]
[Source "ChessBase"]
[SourceQuality "1"]
[TimeControl "5400+30"]

1. e4 {[%emt 0:00:25]} c5 {[%emt 0:00:52]} 2. Nf3 {[%emt 0:00:16]} Nc6 {[%emt 0:00:17]} 3. Nc3 {[%emt 0:00:39]} Nf6 {[%emt 0:03:22]} 4. Bb5 {[%emt 0:01:21]} g6 {[%emt 0:00:30]} 5. e5 {[%emt 0:01:03]} Ng4 {[%emt 0:00:06]} 6. Bxc6 {[%emt 0:00:50]} dxc6 {[%emt 0:00:06]} 7. O-O {[%emt 0:02:14]} Bg7 {[%emt 0:01:13]} 8. Re1 {[%emt 0:01:28]} O-O {[%emt 0:10:23]} 9. d3 {[%emt 0:00:32]} Nh6 {[%emt 0:03:09]} 10. Ne4 {[%emt 0:02:30]} b6 {[%emt 0:02:43]} 11. a4 a5 {[%emt 0:00:30]} 12. h3 Nf5 {[%emt 0:00:30]} 13. c3 Ba6 {[%emt 0:00:30]} 14. d4 cxd4 {[%emt 0:00:30]} 15. cxd4 c5 {[%emt 0:00:30]} 16. d5 Bb7 {[%emt 0:00:30]} 17. Nc3 e6 {[%emt 0:00:30]} 18. Bg5 Qd7 {[%emt 0:00:30]} 19. d6 f6 {[%emt 0:00:30]} 20. exf6 Bxf6 {[%emt 0:00:30]} 21. Bxf6 Rxf6 {[%emt 0:00:30]} 22. Ne5 Qxd6 {[%emt 0:00:30]} 23. Qxd6 Nxd6 {[%emt 0:00:30]} 24. Rad1 Bd5 {[%emt 0:00:30]} 25. Nd7 Rf4 {[%emt 0:00:30]} 26. Nxb6 Rb8 {[%emt 0:00:30]} 27. Nbxd5 exd5 {[%emt 0:00:30]} 28. Nxd5 Rd4 {[%emt 0:00:30]} 29. Ne7+ Kg7 {[%emt 0:00:30]} 30. Nc6 Rxd1 {[%emt 0:00:30]} 31. Rxd1 Rxb2 {[%emt 0:00:30]} 32. Rxd6 c4 {[%emt 0:00:30]} 33. Nxa5 c3 {[%emt 0:00:30]} 34. Rc6 c2 {[%emt 0:00:30]} 35. Kh2 h5 {[%emt 0:00:30]} 36. Rc3 1-0

[Event "ESP-ch Teams Primera 2022"]
[Site "Sanxenxo Pontevedra"]
[Date "2022.09.18"]
[Round "2.20"]
[White "Lorenzo De La Riva, Lazaro"]
[Black "Salgado Lopez, Ivan"]
[Result "1/2-1/2"]
[ECO "C45"]
[WhiteElo "2430"]
[BlackElo "2595"]
[Annotator "ChessBase"]
[PlyCount "136"]
[EventDate "2022.09.17"]
[EventType "team-tourn"]
[EventCountry "ESP"]
[SourceTitle "playchess.com"]
[Source "ChessBase"]
[SourceQuality "1"]
[TimeControl "5400+30"]

1. e4 e5 2. Nf3 Nc6 3. d4 exd4 4. Nxd4 Nf6 5. Nxc6 bxc6 6. e5 Qe7 7. Qe2 Nd5 8. h4 d6 9. c4 Nb6 10. exd6 cxd6 11. Be3 Be6 12. Qc2 Qf6 13. Nd2 Be7 14. Bd3 h6 15. O-O-O Rb8 16. Rde1 d5 17. c5 Nc4 18. Bxc4 dxc4 19. Ne4 Qf5 20. Nd6+ Bxd6 21. Qxf5 Bxf5 22. cxd6 Be6 23. Bxa7 Rb5 24. Bd4 Kd7 25. Re3 Ra8 26. a3 f6 27. Rhe1 Re8 28. Rg3 Rg8 29. Rd1 Rh5 30. Bc3 Rxh4 31. a4 Rg4 32. Rxg4 Bxg4 33. Rd4 Be6 34. a5 Bd5 35. Bb4 Rb8 36. Bc5 Ra8 37. Bb6 Kxd6 38. f3 Re8 39. Kd2 g5 40. Kd1 h5 41. Rd2 c5 42. Re2 Rh8 43. Ke1 h4 44. Kf2 h3 45. Kg1 f5 46. gxh3 Bxf3 47. Rd2+ Bd5 48. Rh2 f4 49. Ba7 Kc6 50. Bb6 Be4 51. Re2 Bd5 52. Rh2 Bf3 53. Rc2 Kb5 54. Rh2 Bb7 55. Bc7 Rh5 56. Bd8 Kb4 57. Bc7 Kb3 58. Bd8 c3 59. bxc3 Kxc3 60. Bf6+ Kd3 61. Rb2 Bd5 62. Kh2 Be6 63. a6 Rxh3+ 64. Kg1 g4 65. Be5 Bd5 66. Bxf4 g3 67. Rd2+ Ke4 68. Rxd5 Kxf4 1/2-1/2

[Event "ESP-ch Teams Primera 2022"]
[Site "Sanxenxo Pontevedra"]
[Date "2022.09.18"]
[Round "2.21"]
[White "Andersen, Mads"]
[Black "Alonso Moyano, Jonathan"]
[Result "1-0"]
[ECO "B90"]
[WhiteElo "2597"]
[BlackElo "2348"]
[Annotator "ChessBase"]
[PlyCount "81"]
[EventDate "2022.09.17"]
[EventType "team-tourn"]
[EventCountry "ESP"]
[SourceTitle "playchess.com"]
[Source "ChessBase"]
[SourceQuality "1"]
[TimeControl "5400+30"]

1. e4 {[%emt 0:00:09]} c5 {[%emt 0:00:09]} 2. Nf3 {[%emt 0:00:09]} d6 {[%emt 0:00:07]} 3. d4 {[%emt 0:00:06]} cxd4 {[%emt 0:00:06]} 4. Nxd4 {[%emt 0:00:08]} Nf6 {[%emt 0:00:04]} 5. Nc3 {[%emt 0:00:09]} a6 {[%emt 0:00:07]} 6. f3 {[%emt 0:00:14]} e5 {[%emt 0:00:44]} 7. Nb3 {[%emt 0:00:10]} Be6 {[%emt 0:00:15]} 8. Be3 {[%emt 0:00:12]} h5 {[%emt 0:00:49]} 9. Nd5 {[%emt 0:00:26]} Bxd5 {[%emt 0:03:27]} 10. exd5 {[%emt 0:00:03]} Nbd7 {[%emt 0:00:06]} 11. Qd2 {[%emt 0:00:48]} Be7 {[%emt 0:07:40]} 12. O-O-O {[%emt 0:02:47]} O-O {[%emt 0:04:22]} 13. Kb1 {[%emt 0:10:29]} a5 {[%emt 0:05:13]} 14. a3 {[%emt 0:12:17]} a4 {[%emt 0:05:55]} 15. Nc1 {[%emt 0:01:12]} Qa5 {[%emt 0:02:21]} 16. Na2 {[%emt 0:13:40]} Qxd2 {[%emt 0:03:50]} 17. Rxd2 {[%emt 0:00:11]} Bd8 {[%emt 0:00:05]} 18. Rd1 {[%emt 0:07:00]} Bb6 {[%emt 0:06:25]} 19. Bg5 {[%emt 0:00:32]} Bd4 {[%emt 0:01:04]} 20. Bb5 {[%emt 0:05:26]} Rfc8 {[%emt 0:00:33]} 21. c3 {[%emt 0:04:53]} Bb6 {[%emt 0:09:25]} 22. Rhe1 {[%emt 0:02:41]} Rc5 {[%emt 0:06:18]} 23. c4 {[%emt 0:03:13]} Rc7 {[%emt 0:01:58]} 24. f4 {[%emt 0:05:31]} Bd4 {[%emt 0:02:59]} 25. Nb4 {[%emt 0:04:06]} Nb6 {[%emt 0:12:30]} 26. fxe5 {[%emt 0:14:02]} Bxe5 {[%emt 0:00:33]} 27. Rxe5 {[%emt 0:00:58]} dxe5 {[%emt 0:00:08]} 28. d6 {[%emt 0:00:11]} Rxc4 {[%emt 0:03:02]} 29. Bxc4 {[%emt 0:02:16]} Nxc4 {[%emt 0:00:10]} 30. d7 {[%emt 0:01:35]} Rd8 {[%emt 0:06:13]} 31. Nd5 {[%emt 0:00:17]} Rxd7 {[%emt 0:00:38]} 32. Nxf6+ {[%emt 0:00:06]} gxf6 {[%emt 0:00:04]} 33. Rxd7 {[%emt 0:00:07]} fxg5 {[%emt 0:00:04]} 34. Rxb7 {[%emt 0:00:15]} Ne3 {[%emt 0:00:25]} 35. b3 {[%emt 0:02:39]} axb3 {[%emt 0:06:50]} 36. a4 {[%emt 0:01:41]} Nc4 {[%emt 0:00:49]} 37. Rc7 {[%emt 0:01:22]} Na5 {[%emt 0:02:49]} 38. Rc5 {[%emt 0:00:15]} Nb7 {[%emt 0:00:07]} 39. Rxe5 {[%emt 0:00:20]} f6 {[%emt 0:00:14]} 40. Rb5 {[%emt 0:00:24]} Nd6 {[%emt 0:00:16]} 41. Rxb3 {[%emt 0:00:28]} 1-0